bitfinex-derivatives/quotes_ETHF0:USTF0_20250329
["timestamp","ask_amount","ask_price","bid_price","bid_amount"]
[1743231767129,2.43472,1882.5,1882.4,5.3617]
[1743231767532,2.43472,1882.5,1882.4,2.1539]
[1743231769537,2.43472,1882.5,1882.4,5.3617]
[1743231770439,2.43472,1882.5,1882.4,2.1539]
[1743231771746,1.3719,1882.5,1882.4,3.21677]
[1743231771943,1.3719,1882.5,1882.4,6.42457]
[1743231772146,51.75258504,1883.1,1882.5,1.06277]
[1743231772355,6.2385,1882.9,1882.6,1.4219]
[1743231772552,1.0627,1882.7,1882.6,1.4219]
[1743231773153,1.06282,1882.5,1882.4,3.9064]
[1743231773444,1.06291,1882.4,1882.2,7.67274]
[1743231773649,1.4504,1882.3,1882.2,9.87124]
[1743231773847,1.4504,1882.3,1882.2,6.46924]
[1743231774754,1.76645,1882.5,1882.3,1.06293]
[1743231774953,3.21685,1882.5,1882.4,1.463]
[1743231775257,3.21685,1882.5,1882.4,2.52587]
[1743231775444,1.4504,1882.5,1882.4,5.73367]
[1743231775845,1.73533,1882.7,1882.5,1.06282]
[1743231776051,3.17783,1882.7,1882.5,3.88342]
[1743231776454,3.2078,1882.8,1882.7,1.0627]
[1743231776753,6.6098,1882.8,1882.6,2.47313]
[1743231776956,1.0627,1882.7,1882.6,1.4104]
[1743231777146,1.0627,1882.7,1882.5,2.47298]
[1743231778953,4.46468,1882.8,1882.6,1.06276]
[1743231779157,4.46468,1882.8,1882.6,4.27056]
[1743231779460,1.0627,1882.7,1882.6,4.27056]
[1743231779762,1.0627,1882.7,1882.6,3.2078]
[1743231780361,1.0627,1882.7,1882.5,5.68077]
[1743231780563,3.402,1882.8,1882.6,1.06272]
[1743231781561,1.0627,1882.7,1882.6,1.06272]
[1743231781968,4.46469,1882.8,1882.6,1.06272]
[1743231782166,3.402,1882.8,1882.6,1.06272]
[1743231782366,1.06275,1882.7,1882.5,5.68078]
[1743231783872,1.06275,1882.7,1882.6,1.06276]
[1743231784376,1.06275,1882.7,1882.5,5.68078]
[1743231784676,3.402,1882.8,1882.5,5.68078]
[1743231784864,3.402,1882.8,1882.5,4.99618]
[1743231785166,1.06276,1882.6,1882.5,4.99618]
[1743231786168,1.06276,1882.6,1882.5,4.99622]
[1743231786363,1.06276,1882.6,1882.5,3.9334]
[1743231786568,1.06275,1882.7,1882.5,3.9334]
[1743231786769,3.402,1882.8,1882.5,3.9334]
[1743231787370,1.06276,1882.6,1882.5,4.9962]
[1743231788070,1.06275,1882.7,1882.5,4.9962]
[1743231788372,1.06276,1882.6,1882.5,4.9962]
[1743231789171,1.06276,1882.6,1882.5,1.7884]
[1743231789471,1.06276,1882.6,1882.5,4.99622]
[1743231789972,1.06276,1882.6,1882.5,3.9334]
[1743231790172,1.06276,1882.6,1882.5,4.99622]
[1743231790467,1.06276,1882.6,1882.5,3.9334]
[1743231790765,1.06287,1882.4,1882.3,3.2078]
[1743231794266,4.46487,1882.4,1882.3,3.2078]
[1743231794576,3.402,1882.4,1882.3,4.27073]
[1743231794871,2.50604,1882.5,1882.3,4.27073]
[1743231794872,0.7341,1882.5,1882.4,1.06287]
[1743231795273,2.0798,1882.5,1882.4,2.46027]
[1743231795470,2.0798,1882.5,1882.4,1.3974]
[1743231795671,3.14262,1882.5,1882.4,1.3974]
[1743231797777,2.0798,1882.5,1882.4,2.46027]
[1743231797977,3.402,1882.6,1882.4,2.46027]
[1743231798187,5.81376,1882.6,1882.5,5.65812]
[1743231798477,5.81376,1882.6,1882.5,4.5953]
[1743231799278,5.81376,1882.6,1882.5,5.3227]
[1743231799581,4.751,1882.6,1882.5,6.38552]
[1743231800577,5.81376,1882.6,1882.5,6.38552]
[1743231800773,5.81376,1882.6,1882.5,5.3227]
[1743231803085,5.81376,1882.6,1882.5,3.2078]
[1743231803276,1.06287,1882.4,1882.3,5.1154]
[1743231803475,1.06287,1882.4,1882.3,6.17833]
[1743231803686,3.15675,1882.5,1882.3,6.17833]
[1743231803983,1.3562,1882.4,1882.3,6.17833]
[1743231804379,2.41907,1882.4,1882.3,5.1154]
[1743231804584,2.41907,1882.4,1882.3,3.7398]
[1743231804886,3.08967,1882.4,1882.3,3.7398]
[1743231806681,3.08967,1882.4,1882.3,4.80273]
[1743231806885,3.08967,1882.4,1882.3,6.23993]
[1743231807085,3.08967,1882.4,1882.3,5.177]
[1743231807276,3.08967,1882.4,1882.3,4.645]
[1743231807584,3.08967,1882.4,1882.3,3.2078]
[1743231812889,3.08967,1882.4,1882.1,0.00795756]
[1743231812890,1.06299,1882.2,1882.1,0.00795756]
[1743231813490,3.22599,1882.2,1882.1,0.00795756]
[1743231818291,3.22599,1882.2,1882.1,1.38265756]
[1743231833018,1.4428,1882.2,1882.1,1.38265756]
[1743231833221,4.1067,1882.5,1882.3,1.06293]
[1743231833520,5.16953,1882.5,1882.4,1.4144]
[1743231833720,1.06299,1882.2,1882.1,0.00795756]
[1743231833915,4.46499,1882.2,1882.1,0.00795756]
[1743231834420,1.0631,1882.0,1881.9,3.2078]
[1743231836120,1.7611,1882.0,1881.9,3.2078]
[1743231836518,1.06315,1881.9,1881.8,0.00795756]
[1743231836721,5.13995,1881.9,1881.8,0.00795756]
[1743231845436,6.60275,1881.9,1881.8,0.00795756]
[1743231849027,0.00795756,1882.1,1882.0,1.0631]
[1743231849230,0.00795756,1882.1,1882.0,4.2709]
[1743231849432,4.46482,1882.5,1882.3,1.06291]
[1743231849738,1.06287,1882.4,1882.2,4.27077]
[1743231849932,1.06287,1882.4,1882.3,1.3452]
[1743231851043,5.94521756,1882.5,1882.3,1.3452]
[1743231851343,4.88235756,1882.5,1882.3,1.3452]
[1743231851536,1.06287,1882.4,1882.3,1.3452]
[1743231852040,4.88235756,1882.5,1882.3,1.3452]
[1743231852241,1.06287,1882.4,1882.3,1.3452]
[1743231853641,1.06287,1882.4,1882.3,2.0568]
[1743231854542,2.50757,1882.4,1882.3,2.0568]
[1743231854742,2.50757,1882.4,1882.3,5.2646]
[1743231856143,2.50757,1882.4,1882.3,5.7966]
[1743231856345,3.23987,1882.4,1882.3,5.2646]
[1743231856543,3.23987,1882.4,1882.3,5.7966]
[1743231858746,0.00795756,1882.5,1882.4,1.06287]
[1743231859047,0.00795756,1882.5,1882.4,3.23287]
[1743231859748,3.401,1883.0,1882.8,1.06265]
[1743231859934,3.401,1883.0,1882.7,4.27048]
[1743231859935,4.777,1883.0,1882.7,4.27048]
[1743231860141,1.376,1882.9,1882.8,1.4569]
[1743231860848,2.43859,1882.9,1882.8,1.4569]
[1743231864648,1.376,1882.9,1882.8,2.51955]
[1743231864848,0.00795756,1883.0,1882.8,5.72735]
[1743231865049,1.07050756,1883.0,1882.9,1.3989]
[1743231865248,0.00795756,1883.0,1882.9,2.46149]
[1743231865441,0.00795756,1883.0,1882.9,9.51321814]
[1743231866554,4.4634,1883.3,1883.1,1.06245]
[1743231866745,4.4634,1883.3,1883.2,0.6949]
[1743231867147,5.9185,1883.3,1883.2,0.6949]
[1743231867645,1.06242,1883.2,1883.1,1.3989]
[1743231867845,2.52022,1883.2,1883.1,1.3989]
[1743231871165,1.4578,1883.2,1883.1,2.46138]
[1743231871656,2.52022,1883.2,1883.1,1.3989]
[1743231871858,0.00530504,1883.4,1883.1,3.8989]
[1743231872056,2.1399,1883.7,1883.3,3.2078]
[1743231872263,2.1399,1883.7,1883.6,1.0622]
[1743231872658,1.77594,1883.9,1883.7,1.06212]
[1743231872859,1.77594,1883.9,1883.8,1.339]
[1743231873366,0.7139,1883.9,1883.8,2.40108]
[1743231873564,49.081,1884.4,1883.8,1.339]
[1743231873760,5.15341,1884.3,1884.1,4.26969]
[1743231873966,6.50681,1884.3,1884.1,4.26969]
[1743231874166,6.50681,1884.3,1884.2,1.462]
[1743231874367,5.445,1884.3,1884.2,2.52386]
[1743231874560,6.5068,1884.3,1884.2,1.462]
[1743231876268,5.445,1884.3,1884.2,2.52386]
[1743231876971,1.3534,1884.3,1884.2,3.05506]
[1743231877265,3.2078,1885.1,1884.2,11.3588134]
[1743231877471,1.3513,1884.8,1884.7,3.2078]
[1743231877663,2.41282,1884.8,1884.7,4.6537]
[1743231877863,2.41282,1884.8,1884.7,1.4459]
[1743231878362,1.3513,1884.8,1884.7,5.71528]
[1743231879773,3.2078,1885.1,1884.9,1.06146]
[1743231880065,4.5591,1885.1,1885.0,1.4459]
[1743231880766,4.5591,1885.1,1885.0,2.50731]
[1743231881168,5.62045,1885.1,1885.0,1.4459]
[1743231882171,2.41265,1885.1,1885.0,1.4459]
[1743231882673,2.41265,1885.1,1884.9,3.2078]
[1743231882873,2.41265,1885.1,1884.9,4.5979]
[1743231883074,1.3513,1885.1,1884.9,4.5979]
[1743231883467,1.3513,1885.1,1885.0,1.06141]
[1743231883866,1.3513,1885.1,1885.0,2.47091]
[1743231884770,2.41265,1885.1,1885.0,1.4095]
[1743231884969,1.06141,1885.0,1884.9,3.2078]
[1743231885174,2.50875,1885.0,1884.7,5.67883]
[1743231885372,3.18395,1885.0,1884.7,5.67883]
[1743231885677,3.18392,1885.0,1884.8,1.06151]
[1743231886075,3.18392,1885.0,1884.7,5.67884]
[1743231886570,3.18392,1885.0,1884.8,1.06152]
[1743231887075,1.0615,1884.9,1884.7,4.6173]
[1743231887276,2.44432,1884.8,1884.7,4.6173]
[1743231887773,1.3828,1884.8,1884.7,5.67888]
[1743231889179,2.44432,1884.8,1884.7,4.6173]
[1743231889775,2.44432,1884.8,1884.7,3.2078]
[1743231893781,5.84032,1884.8,1884.7,3.2078]
[1743231897278,1.06158,1884.7,1884.6,0.00795756]
[1743231897482,2.48068,1884.7,1884.6,0.00795756]
[1743231897878,2.48068,1884.7,1884.2,4.4525]
[1743231897879,1.0618,1884.3,1884.2,4.4525]
[1743231898082,1.06178,1884.4,1884.2,5.51436]
[1743231898289,1.06178,1884.4,1884.3,1.3685]
[1743231898589,3.16122,1884.5,1884.3,2.43025]
[1743231898781,1.4293,1884.4,1884.3,5.6381]
[1743231899088,2.49104,1884.4,1884.3,4.5763]
[1743231900290,2.49104,1884.4,1884.3,5.6381]
[1743231900474,2.49104,1884.4,1884.3,4.5763]
[1743231901891,2.49104,1884.4,1884.3,5.6381]
[1743231902487,0.00795756,1884.6,1884.4,1.06173]
[1743231902687,1.06958756,1884.6,1884.5,1.4615]
[1743231904483,0.00795756,1884.6,1884.5,2.52319]
[1743231905089,1.06958756,1884.6,1884.5,1.4615]
[1743231908388,1.06174,1884.4,1884.3,3.2078]
[1743231908588,3.20473,1884.5,1884.3,5.6181]
[1743231908886,2.143,1884.5,1884.4,2.41024]
[1743231909188,1.4326,1884.5,1884.4,2.41024]
[1743231910292,1.06960756,1884.6,1884.5,1.06169]
[1743231911494,0.00795756,1884.6,1884.5,1.06169]
[1743231912485,1.06958756,1884.6,1884.5,1.06169]
[1743231912993,0.00795756,1884.6,1884.5,1.06169]
[1743231913295,1.06169,1884.5,1884.4,1.3485]
[1743231913589,2.43799,1884.5,1884.4,2.41024]
[1743231913991,1.3763,1884.5,1884.4,2.41024]
[1743231914292,1.06962756,1884.6,1884.5,1.06169]
[1743231914492,2.52782756,1884.6,1884.5,2.46679]
[1743231916590,2.52778756,1884.6,1884.5,2.99799]
[1743231916784,1.06958756,1884.6,1884.5,2.99799]
[1743231917395,2.41228756,1884.6,1884.5,2.99799]
[1743231918796,1.35065756,1884.6,1884.5,2.99799]
[1743231918999,2.41228756,1884.6,1884.5,2.99799]
[1743231919190,2.41228756,1884.6,1884.5,1.9363]
[1743231921295,1.06174,1884.4,1884.3,3.2078]
[1743231921894,3.10014,1884.4,1884.3,3.2078]
[1743231923794,1.0618,1884.3,1884.2,0.00795756]
[1743231923994,1.4265,1884.3,1883.8,5.248]
[1743231924294,3.396,1884.2,1883.8,5.248]
[1743231924493,1.06203,1883.9,1883.8,5.248]
[1743231924693,1.06203,1883.9,1883.8,3.2078]
[1743231925194,4.45803,1883.9,1883.8,3.2078]
[1743231926898,4.45803,1883.9,1883.7,0.00795756]
[1743231926899,1.06208,1883.8,1883.7,0.00795756]
[1743231927093,3.14398,1883.8,1883.7,0.00795756]
[1743231928301,1.06225,1883.5,1883.4,0.5312]
[1743231928498,3.397,1883.5,1883.1,1.4586]
[1743231928701,3.99974,1883.4,1882.9,9.2058]
[1743231928906,1.06257,1883.0,1882.9,3.739]
[1743231929293,4.7586,1883.2,1882.9,4.80159]
[1743231929499,1.07043756,1883.1,1883.0,1.4183]
[1743231929701,2.43203756,1883.1,1883.0,1.4183]
[1743231930997,1.06253,1883.0,1882.9,3.739]
[1743231931300,2.42413,1883.0,1882.9,4.6261]
[1743231931502,1.3616,1883.0,1882.9,4.6261]
[1743231931703,2.42413,1883.0,1882.9,5.1573]
[1743231931901,2.42413,1883.0,1882.9,4.6261]
[1743231932102,1.3616,1883.0,1882.9,4.6261]
[1743231932307,2.42413,1883.0,1882.9,4.6261]
[1743231933001,1.3616,1883.0,1882.9,5.68869]
[1743231933198,2.42413,1883.0,1882.9,4.6261]
[1743231935909,2.42413,1883.0,1882.9,5.1573]
[1743231936211,2.42413,1883.0,1882.9,4.6261]
[1743231937310,1.06259,1882.9,1882.8,0.00795756]
[1743231937518,1.06276,1882.6,1882.5,1.9844]
[1743231938011,1.06276,1882.6,1882.5,0.5312]
[1743231938714,1.06276,1882.6,1882.5,1.8987]
[1743231939017,2.51936,1882.6,1882.5,1.8987]
[1743231942309,2.51936,1882.6,1882.5,1.3675]
[1743231962727,1.06282,1882.5,1882.4,3.74695756]
[1743231962927,2.48702,1882.5,1882.4,3.74695756]
[1743231963239,2.48702,1882.5,1882.4,4.80982756]
[1743231963440,2.48702,1882.5,1882.4,6.19962756]
[1743231963642,2.48702,1882.5,1882.4,5.13675756]
[1743231963842,2.48702,1882.5,1882.4,6.19962756]
[1743231966046,2.48702,1882.5,1882.4,2.99182756]
[1743231966239,2.48702,1882.5,1882.4,6.19962756]
[1743231967549,2.48702,1882.5,1882.4,5.13675756]
[1743231968740,2.48702,1882.5,1882.4,6.19962756]
[1743231968941,2.48702,1882.5,1882.4,5.13675756]
[1743231969140,2.48702,1882.5,1882.4,6.19962756]
[1743231969439,1.0628,1882.6,1882.5,1.06282]
[1743231969640,2.5216,1882.6,1882.5,1.06282]
[1743231969840,2.5216,1882.6,1882.4,5.48079756]
[1743231970140,1.4588,1882.5,1882.4,5.48079756]
[1743231970741,2.52162,1882.5,1882.4,5.48079756]
[1743231971149,1.4588,1882.5,1882.4,5.48079756]
[1743231972549,0.6847,1882.7,1882.4,4.41795756]
[1743231972848,0.00795756,1883.1,1883.0,1.06253]
[1743231973146,2.41853756,1883.1,1883.0,3.2078]
[1743231973449,3.12753756,1883.1,1883.0,3.2078]
[1743231973652,3.84203756,1883.1,1883.0,3.2078]
[1743231977352,1.06265,1882.8,1882.7,3.2078]
[1743231977645,1.06282,1882.5,1882.4,1.25585756]
[1743231979448,1.3482,1882.6,1882.5,1.06282]
[1743231979648,2.41098,1882.6,1882.5,3.2078]
[1743231984057,1.06282,1882.5,1882.4,1.25585756]
[1743231984355,2.43832,1882.5,1882.4,1.25585756]
[1743231984754,2.43832,1882.5,1882.4,0.53915756]
[1743231987149,2.43832,1882.5,1882.4,1.92915756]
[1743231987344,2.43832,1882.5,1882.4,0.00795756]
[1743231987549,10.4823,1882.5,1881.7,3.7398]
[1743231987749,1.06315,1881.9,1881.8,2.6633]
[1743231988458,1.06315,1881.9,1881.8,1.922]
[1743231989252,2.53245,1881.9,1881.8,1.922]
[1743231990862,3.24025,1881.9,1881.8,1.922]
[1743231991059,3.24025,1881.9,1881.8,0.532]
[1743231994964,1.06321,1881.8,1881.7,0.00795756]
[1743231995266,3.17851,1881.8,1881.7,0.00795756]
[1743231996062,6.38631,1881.8,1881.7,0.00795756]
[1743231996362,1.06344,1881.4,1881.3,6.53]
[1743231996567,1.06344,1881.4,1881.3,1.4071]
[1743231996966,3.14084,1881.4,1881.3,1.4071]
[1743231997361,3.14084,1881.4,1881.3,1.9391]
[1743231997569,3.14084,1881.4,1881.3,1.4071]
[1743231997765,3.82424,1881.4,1881.3,1.4071]
[1743231997960,3.82424,1881.4,1881.3,0.532]
[1743231997961,2.7608,1881.4,1881.3,0.532]
[1743231998165,2.7608,1881.4,1881.2,0.72620504]
[1743231998368,1.4089,1881.3,1881.2,0.72620504]
[1743231998968,2.47239,1881.3,1881.2,2.13330504]
[1743232004772,2.47239,1881.3,1881.2,3.19685504]
[1743232004975,3.2078,1881.8,1881.2,2.13330504]
[1743232005178,0.6911,1881.6,1881.5,1.06338]
[1743232005374,1.75445,1881.6,1881.4,1.06339]
[1743232005573,3.18915,1881.6,1881.4,1.06339]
[1743232006377,1.06338,1881.5,1881.3,4.27125]
[1743232006578,1.06338,1881.5,1881.3,3.2078]
[1743232006874,6.6128,1881.4,1881.2,0.00530504]
[1743232007078,2.49819,1881.3,1881.2,0.00530504]
[1743232007375,3.18929,1881.3,1881.2,0.00530504]
[1743232009781,2.1258,1881.3,1881.2,0.00530504]
[1743232009984,3.412,1881.4,1881.3,1.06349]
[1743232010182,1.06338,1881.5,1881.4,1.06344]
[1743232010483,1.06344,1881.4,1881.3,1.78168]
[1743232010683,2.45522,1881.5,1881.3,1.78168]
[1743232010881,1.06344,1881.4,1881.3,0.7182]
[1743232012195,1.76874,1881.4,1881.3,0.7182]
[1743232012397,1.06349,1881.3,1881.2,0.00530504]
[1743232012588,2.51459,1881.3,1881.2,0.00530504]
[1743232013096,2.51459,1881.3,1881.2,1.06885504]
[1743232013291,1.4511,1881.3,1881.2,1.06885504]
[1743232013894,2.51459,1881.3,1881.2,1.06885504]
[1743232014297,1.4511,1881.3,1881.2,1.06885504]
[1743232014498,2.51459,1881.3,1881.2,1.06885504]
[1743232014696,2.51459,1881.3,1881.2,0.00530504]
[1743232015096,5.92459,1881.3,1881.2,0.00530504]
[1743232019498,4.8611,1881.3,1881.2,1.06885504]
[1743232019706,3.2078,1881.8,1881.2,0.00530504]
[1743232019996,1.06338,1881.5,1881.4,1.06342]
[1743232020198,1.06338,1881.5,1881.4,1.75262]
[1743232020501,2.43968,1881.5,1881.4,0.6892]
[1743232021299,2.43968,1881.5,1881.4,1.75264]
[1743232021599,2.43968,1881.5,1881.4,0.6892]
[1743232023696,2.43968,1881.5,1881.4,1.75264]
[1743232023896,2.43968,1881.5,1881.4,0.6892]
[1743232025600,2.43968,1881.5,1881.4,2.0291]
[1743232025899,2.43968,1881.5,1881.4,3.09254]
[1743232026093,2.43968,1881.5,1881.4,2.0291]
[1743232027098,2.43968,1881.5,1881.4,3.09254]
[1743232027301,1.3763,1881.5,1881.4,3.09254]
[1743232027897,0.714,1881.7,1881.6,1.06332]
[1743232028202,2.52181,1881.8,1881.6,4.27107]
[1743232028401,1.77251,1881.8,1881.7,1.4186]
[1743232029098,1.77255,1881.8,1881.6,1.06332]
[1743232029303,1.77255,1881.8,1881.6,2.48192]
[1743232032101,1.77255,1881.8,1881.7,1.06327]
[1743232032307,1.77255,1881.8,1881.6,2.48189]
[1743232033108,1.06327,1881.7,1881.6,2.48189]
[1743232033307,1.06327,1881.7,1881.5,1.06334]
[1743232033810,1.06327,1881.7,1881.6,1.06332]
[1743232034010,1.06327,1881.7,1881.5,2.43695]
[1743232035711,1.06332,1881.6,1881.5,2.43695]
[1743232036312,1.06331,1881.7,1881.5,2.43695]
[1743232037805,1.06332,1881.6,1881.5,2.43695]
[1743232038202,1.06332,1881.6,1881.5,1.3736]
[1743232038407,1.06344,1881.4,1881.3,0.532]
[1743232038608,1.06349,1881.3,1881.2,3.21310504]
[1743232039117,4.46449,1881.3,1881.2,3.21310504]
[1743232039502,4.46449,1881.3,1881.2,0.00530504]
[1743232039813,1.06366,1881.0,1880.9,0.532]
[1743232042308,0.6987,1881.1,1880.7,0.532]
[1743232042512,1.06375,1880.9,1880.7,2.94043]
[1743232042713,1.06375,1880.9,1880.7,2.40843]
[1743232042912,0.6965,1880.8,1880.7,2.94043]
[1743232043306,0.6965,1880.8,1880.7,2.40843]
[1743232043706,1.76028,1880.8,1880.7,2.40843]
[1743232043907,1.76028,1880.8,1880.7,1.3446]
[1743232044309,1.76028,1880.8,1880.7,1.8766]
[1743232044512,1.76028,1880.8,1880.7,1.3446]
[1743232044908,1.76028,1880.8,1880.7,1.8766]
[1743232045115,1.76028,1880.8,1880.7,1.3446]
[1743232045607,1.76028,1880.8,1880.7,1.8766]
[1743232045813,1.76028,1880.8,1880.7,1.3446]
[1743232046009,1.76028,1880.8,1880.7,1.8766]
[1743232046206,1.76028,1880.8,1880.7,1.3446]
[1743232046407,1.06383,1880.7,1880.6,0.6787]
[1743232046609,2.43233,1880.7,1880.6,0.6787]
[1743232046913,2.43233,1880.7,1880.6,2.0297]
[1743232047512,1.06389,1880.6,1880.5,9.7378]
[1743232047714,1.4679,1880.6,1880.5,5.62915]
[1743232048013,2.53179,1880.6,1880.5,5.62915]
[1743232048516,1.4679,1880.6,1880.5,5.62915]
[1743232049318,2.53179,1880.6,1880.5,4.5652]
[1743232049511,2.53179,1880.6,1880.5,5.62915]
[1743232050013,2.53179,1880.6,1880.5,1.3574]
[1743232050210,1.4679,1880.6,1880.3,0.7037]
[1743232050417,1.064,1880.4,1880.3,2.0611]
[1743232050814,2.4622,1880.4,1880.3,2.0611]
[1743232051517,1.06406,1880.3,1880.2,0.532]
[1743232051720,1.06412,1880.2,1880.1,0.532]
[1743232052021,1.3739,1880.2,1880.1,1.06417]
[1743232052212,1.3739,1880.2,1880.1,2.50757]
[1743232052411,2.7721,1880.2,1880.1,2.50757]
[1743232053523,2.7721,1880.2,1880.1,1.4434]
[1743232053820,3.83622,1880.2,1880.1,1.4434]
[1743232054321,2.7721,1880.2,1880.1,1.4434]
[1743232054515,2.7721,1880.2,1880.1,2.50757]
[1743232055322,3.83622,1880.2,1880.1,1.4434]
[1743232056612,1.06418,1880.1,1879.9,1.59625]
[1743232056814,2.43804,1880.2,1880.0,2.4549]
[1743232057025,1.06417,1880.1,1880.0,1.3907]
[1743232057223,2.43806,1880.2,1880.0,2.45491]
[1743232057424,1.3739,1880.2,1880.0,1.3907]
[1743232057724,1.3739,1880.2,1879.9,0.532]
[1743232057926,1.3739,1880.2,1880.0,2.43771]
[1743232058224,2.43806,1880.2,1880.1,1.3735]
[1743232059426,2.43806,1880.2,1880.1,2.43767]
[1743232059728,2.43806,1880.2,1880.1,1.3735]
[1743232060427,1.06417,1880.1,1879.9,1.59627]
[1743232060731,1.06423,1880.0,1879.9,1.874]
[1743232061125,1.3739,1880.2,1879.8,5.5051]
[1743232061126,1.06429,1879.9,1879.8,3.9088]
[1743232061331,1.06429,1879.9,1879.8,0.701]
[1743232061531,1.06434,1879.8,1879.7,1.342]
[1743232061828,1.06434,1879.8,1879.6,4.94031]
[1743232062032,1.06434,1879.8,1879.7,1.342]
[1743232063323,1.0644,1879.7,1879.6,0.6681]
[1743232063530,1.06446,1879.6,1879.5,1.3982]
[1743232064037,1.06451,1879.5,1879.4,3.2078]
[1743232064228,1.06451,1879.5,1879.4,4.606]
[1743232065629,4.47551,1879.5,1879.4,4.606]
[1743232066734,3.411,1879.5,1879.4,5.67057]
[1743232067030,4.47551,1879.5,1879.4,4.606]
[1743232067332,4.47551,1879.5,1879.4,3.2078]
[1743232067827,3.411,1879.5,1879.4,4.27237]
[1743232068129,3.411,1879.5,1879.4,3.2078]
[1743232068330,4.47551,1879.5,1879.4,4.6733]
[1743232069237,4.47551,1879.5,1879.4,3.2078]
[1743232069935,4.47551,1879.5,1879.4,4.5939]
[1743232072338,4.47551,1879.5,1879.4,1.3861]
[1743232074129,3.404,1879.6,1879.4,1.3861]
[1743232074332,4.46846,1879.6,1879.4,3.17975]
[1743232074636,4.46846,1879.6,1879.5,1.3599]
[1743232075235,1.06446,1879.6,1879.5,1.3599]
[1743232075428,2.42956,1879.6,1879.5,1.3599]
[1743232075632,1.3651,1879.6,1879.5,2.42441]
[1743232076448,2.42956,1879.6,1879.5,2.42441]
[1743232076648,2.42956,1879.6,1879.5,1.3599]
[1743232076848,2.42956,1879.6,1879.5,2.42441]
[1743232077251,2.42956,1879.6,1879.5,1.3599]
[1743232077654,1.3651,1879.6,1879.5,2.42441]
[1743232077955,2.42956,1879.6,1879.5,2.42441]
[1743232078249,2.42956,1879.6,1879.5,1.3599]
[1743232080154,1.76105,1879.7,1879.5,2.42441]
[1743232080457,1.06446,1879.6,1879.5,1.3599]
[1743232080646,1.409,1879.6,1879.5,1.06451]
[1743232081155,2.47348,1879.6,1879.4,1.2619]
[1743232081341,1.409,1879.6,1879.5,1.06451]
[1743232081542,2.47347,1879.6,1879.4,2.32644]
[1743232081754,1.06451,1879.5,1879.4,0.5328]
[1743232081955,2.48901,1879.5,1879.4,0.5328]
[1743232082348,1.4245,1879.5,1879.4,0.5328]
[1743232082554,1.4245,1879.5,1879.4,1.59735]
[1743232082855,2.48901,1879.5,1879.4,1.59735]
[1743232083057,1.4245,1879.5,1879.4,1.59735]
[1743232086949,2.48901,1879.5,1879.4,1.59735]
[1743232087257,1.4245,1879.5,1879.4,1.59735]
[1743232088158,1.4245,1879.5,1879.4,2.26765]
[1743232089456,0.6966,1879.7,1879.4,1.2031]
[1743232089657,3.10892,1879.7,1879.5,1.06448]
[1743232091053,1.4628,1879.6,1879.5,1.06448]
[1743232091254,2.52726,1879.6,1879.5,1.06448]
[1743232091453,1.4628,1879.6,1879.4,0.5328]
[1743232091655,1.4628,1879.5,1879.4,0.5328]
[1743232092054,1.4628,1879.5,1879.4,1.59734]
[1743232093556,1.76103,1879.7,1879.5,1.06447]
[1743232093756,3.19993,1879.7,1879.5,1.06447]
[1743232093956,0.6966,1879.7,1879.6,1.06446]
[1743232094150,2.50324,1879.8,1879.6,1.06442]
[1743232094354,3.21564,1879.8,1879.7,0.6763]
[1743232094860,3.21564,1879.8,1879.7,1.7407]
[1743232095065,3.21564,1879.8,1879.7,0.6763]
[1743232095461,3.21564,1879.8,1879.7,2.0474]
[1743232096958,3.21564,1879.8,1879.7,3.1118]
[1743232097361,2.1513,1879.8,1879.7,3.1118]
[1743232097759,2.1513,1879.8,1879.7,6.3196]
[1743232098067,0.6738,1880.0,1879.9,1.06429]
[1743232098254,2.0289,1880.0,1879.9,1.06429]
[1743232099265,2.0289,1880.0,1879.9,2.40759]
[1743232099962,3.09313,1880.0,1879.9,2.40759]
[1743232100265,2.0289,1880.0,1879.9,2.40759]
[1743232100458,1.3551,1880.0,1879.9,5.61539]
[1743232101159,2.0504,1880.0,1879.9,5.61539]
[1743232102566,2.0504,1880.0,1879.7,3.2078]
[1743232102764,2.0504,1880.0,1879.7,1.06438]
[1743232102765,3.22551,1879.9,1879.7,1.06438]
[1743232102967,1.432,1879.8,1879.7,2.43268]
[1743232103166,1.432,1879.8,1879.7,5.64048]
[1743232106973,4.0993,1880.0,1879.9,1.06429]
[1743232107170,1.0643,1879.9,1879.7,3.2078]
[1743232107378,1.4614,1879.8,1879.7,4.27217]
[1743232107567,1.4614,1879.8,1879.6,0.532]
[1743232107769,1.7741,1879.7,1879.6,0.532]
[1743232108576,0.7097,1879.7,1879.6,1.59646]
[1743232108981,2.0718,1879.7,1879.6,1.59646]
[1743232109171,2.0718,1879.7,1879.6,3.04636]
[1743232109675,3.1362,1879.7,1879.6,3.04636]
[1743232110475,3.1362,1879.7,1879.6,1.9819]
[1743232111377,3.1362,1879.7,1879.6,3.04636]
[1743232111581,2.0718,1879.7,1879.6,3.04636]
[1743232114077,1.3621,1879.7,1879.6,3.04636]
[1743232114282,1.3925,1879.9,1879.8,1.06434]
[1743232115878,2.8743,1879.9,1879.8,1.06434]
[1743232117984,3.93859,1879.9,1879.7,3.06907]
[1743232118177,1.4088,1879.8,1879.7,3.06907]
[1743232121982,0.6954,1879.9,1879.8,1.06434]
[1743232122188,0.6954,1879.9,1879.8,5.74234]
[1743232124085,0.6954,1879.9,1879.8,6.43204]